bitfinex-derivatives/quotes_ETHF0:USTF0_20260117
["timestamp","ask_amount","ask_price","bid_price","bid_amount"]
[1768668663916,0.97106962,3319.3,3317.9,0.97106962]
[1768668664221,0.28077316,3319.2,3317.9,0.97106962]
[1768668664423,0.28077316,3319.1,3317.9,0.97106962]
[1768668664613,0.13873615,3319.2,3317.9,0.97106962]
[1768668664814,0.41929486,3319.1,3317.9,0.97106962]
[1768668665017,0.13873615,3319.1,3317.9,0.97106962]
[1768668665430,0.0030087,3319.2,3317.3,0.1337515]
[1768668665431,1.10980577,3318.8,3317.3,0.1337515]
[1768668665725,0.13873615,3318.7,3317.3,0.97494053]
[1768668669312,0.13873615,3318.7,3317.3,0.00387091]
[1768668670222,1.10858119,3318.4,3317.3,0.00387091]
[1768668670425,0.13873615,3318.3,3317.3,0.00387091]
[1768668676121,0.98745425,3318.2,3317.3,0.00387091]
[1768668676322,0.13873615,3318.3,3317.3,0.00387091]
[1768668676522,0.98749843,3318.2,3317.3,0.00387091]
[1768668676722,0.13873615,3318.3,3317.3,0.00387091]
[1768668676932,0.98749865,3318.2,3317.3,0.00387091]
[1768668677132,0.13873615,3318.3,3317.3,0.00387091]
[1768668677437,0.98779136,3318.2,3317.3,0.00387091]
[1768668677731,0.13873615,3318.3,3317.3,0.00387091]
[1768668677922,0.98784296,3318.2,3317.3,0.00387091]
[1768668678122,0.13873615,3318.3,3317.3,0.00387091]
[1768668678323,0.98793861,3318.2,3317.3,0.00387091]
[1768668678621,0.13873615,3318.3,3317.3,0.00387091]
[1768668678824,0.98799471,3318.2,3317.3,0.00387091]
[1768668679018,0.13873615,3318.3,3317.3,0.00387091]
[1768668679218,1.12704152,3318.2,3317.3,0.00387091]
[1768668679423,0.98830537,3318.1,3317.3,0.00387091]
[1768668679629,0.13873615,3318.0,3316.2,40.92988059]
[1768668679931,1.12704152,3317.9,3316.2,0.12988059]
[1768668680125,0.98830537,3317.8,3316.2,0.12988059]
[1768668680325,0.13873615,3317.9,3316.2,0.12988059]
[1768668680519,1.12721393,3317.8,3316.2,0.12988059]
[1768668680728,0.13873615,3317.8,3316.2,0.13357847]
[1768668681333,0.98868388,3317.7,3316.2,0.13357847]
[1768668681534,0.13873615,3317.8,3316.2,0.13357847]
[1768668681731,0.98876588,3317.7,3316.2,0.13357847]
[1768668681921,0.13873615,3317.8,3316.2,0.13357847]
[1768668682120,0.98876583,3317.7,3316.2,0.13357847]
[1768668682333,0.13873615,3317.8,3316.2,0.13357847]
[1768668682633,0.98909077,3317.7,3316.2,0.13357847]
[1768668682934,0.13873615,3317.8,3316.2,0.13357847]
[1768668683234,0.98909069,3317.7,3316.2,0.13357847]
[1768668683435,0.98909069,3317.6,3316.2,0.13357847]
[1768668683634,0.13873615,3317.8,3316.2,0.13357847]
[1768668683844,0.98951865,3317.7,3316.2,0.13357847]
[1768668684032,0.98951865,3317.6,3316.2,0.13357847]
[1768668684231,0.13873615,3317.8,3316.2,0.13357847]
[1768668684433,0.98981957,3317.7,3316.2,0.13357847]
[1768668684627,0.98981957,3317.6,3316.2,0.13357847]
[1768668684933,0.13873615,3317.8,3316.2,0.13357847]
[1768668685135,0.98981957,3317.7,3316.2,0.13357847]
[1768668685345,0.98981957,3317.6,3316.2,0.13357847]
[1768668685637,0.13873615,3317.8,3316.2,0.13357847]
[1768668685825,0.98995406,3317.7,3316.2,0.13357847]
[1768668686028,0.98995406,3317.6,3316.2,0.13357847]
[1768668686229,0.13873615,3317.8,3316.2,0.13357847]
[1768668686530,0.99009444,3317.7,3316.2,0.13357847]
[1768668686840,0.99009444,3317.6,3316.2,0.13357847]
[1768668687034,0.13873615,3317.8,3316.2,0.13357847]
[1768668687341,0.9903134,3317.7,3316.5,0.96984504]
[1768668687538,0.9903134,3317.6,3316.5,0.96984504]
[1768668687741,0.13873615,3317.8,3316.5,0.96984504]
[1768668687929,0.99036298,3317.7,3316.5,0.96984504]
[1768668688129,0.99036298,3317.6,3316.5,0.96984504]
[1768668688329,0.13873615,3317.8,3316.5,0.96984504]
[1768668688531,0.99057353,3317.7,3316.5,0.96984504]
[1768668688733,0.99057353,3317.6,3316.5,0.96984504]
[1768668688934,0.13873615,3317.8,3316.5,0.96984504]
[1768668689242,0.99057126,3317.7,3316.5,0.96984504]
[1768668689430,0.99057126,3317.6,3316.5,0.96984504]
[1768668689630,0.13873615,3317.8,3316.5,0.96984504]
[1768668689830,0.99079534,3317.7,3316.5,0.96984504]
[1768668690129,0.99079534,3317.6,3316.5,0.96984504]
[1768668690325,0.13873615,3317.8,3316.5,0.96984504]
[1768668690529,0.99081804,3317.7,3316.5,0.96984504]
[1768668690737,0.99081804,3317.6,3316.5,0.96984504]
[1768668690939,0.13873615,3317.8,3316.5,0.96984504]
[1768668691129,0.99081769,3317.7,3316.2,0.13357847]
[1768668691326,0.99081769,3317.6,3316.2,0.13357847]
[1768668691532,0.99081769,3317.5,3316.2,0.13357847]
[1768668691734,0.13873615,3317.8,3316.2,0.13357847]
[1768668691932,1.13383992,3317.7,3316.2,3.49957847]
[1768668692133,0.99106514,3317.6,3316.2,3.49957847]
[1768668692334,0.99106514,3317.5,3316.2,3.49957847]
[1768668692534,0.14277478,3317.7,3316.2,3.49957847]
[1768668692737,0.99124221,3317.6,3316.2,3.49957847]
[1768668692940,0.99124221,3317.5,3316.2,3.49957847]
[1768668693245,0.14277478,3317.7,3316.2,3.49957847]
[1768668693444,0.99118682,3317.6,3316.2,3.49957847]
[1768668693641,0.99118682,3317.5,3316.2,0.13357847]
[1768668693945,0.14349185,3317.6,3316.2,0.13357847]
[1768668694241,0.99123879,3317.5,3316.2,0.00369788]
[1768668694442,0.14349185,3317.6,3316.2,0.00369788]
[1768668694637,0.99126681,3317.5,3316.2,0.00369788]
[1768668694839,0.14349185,3317.6,3316.2,0.00369788]
[1768668695142,0.9912668,3317.5,3316.2,0.00369788]
[1768668695339,0.14349185,3317.6,3316.2,0.00369788]
[1768668695540,0.99131555,3317.5,3316.2,0.00369788]
[1768668695742,0.14349185,3317.6,3316.2,0.00369788]
[1768668695936,0.99131334,3317.5,3316.2,0.00369788]
[1768668696136,0.14349185,3317.6,3316.2,0.13381363]
[1768668696336,0.99131691,3317.5,3316.2,0.13381363]
[1768668696635,0.14349185,3317.6,3316.2,0.13381363]
[1768668696835,0.99138649,3317.5,3316.2,0.13381363]
[1768668697046,0.14349185,3317.6,3316.2,0.13381363]
[1768668697245,0.99138761,3317.5,3316.2,0.13381363]
[1768668697545,0.14349185,3317.6,3316.2,0.13381363]
[1768668697731,0.99148204,3317.5,3316.2,0.13381363]
[1768668697936,0.14349185,3317.6,3316.2,0.13381363]
[1768668698137,0.99148207,3317.5,3316.2,0.13381363]
[1768668698338,0.14349185,3317.6,3316.2,0.13381363]
[1768668698539,0.99160143,3317.5,3316.2,0.13381363]
[1768668698840,0.14349185,3317.6,3316.2,0.13381363]
[1768668699046,0.99160014,3317.5,3316.2,0.13381363]
[1768668699246,0.14349185,3317.6,3316.2,0.13381363]
[1768668699443,0.99174888,3317.5,3316.2,0.13381363]
[1768668699646,0.14349185,3317.6,3316.2,0.13381363]
[1768668699841,0.99174886,3317.5,3316.2,0.13381363]
[1768668700143,0.14349185,3317.6,3316.2,0.13381363]
[1768668700337,0.99174873,3317.5,3316.5,0.96984504]
[1768668700537,0.14349185,3317.6,3316.5,0.96984504]
[1768668700738,0.99183727,3317.5,3316.5,0.96984504]
[1768668700933,0.14349185,3317.6,3316.2,0.13381363]
[1768668701137,0.99183749,3317.5,3316.2,0.13381363]
[1768668701339,0.14349185,3317.6,3316.2,0.13381363]
[1768668701539,0.99189406,3317.5,3316.2,0.13381363]
[1768668701741,0.14349185,3317.6,3316.2,0.13381363]
[1768668701946,0.99189409,3317.5,3316.2,0.13381363]
[1768668702146,0.14349185,3317.6,3316.2,0.13381363]
[1768668702337,0.99189426,3317.5,3316.2,0.13381363]
[1768668702543,0.99192416,3317.4,3316.2,0.13381363]
[1768668702741,0.14349185,3317.6,3316.2,0.13381363]
[1768668702942,0.99192372,3317.5,3316.2,0.13381363]
[1768668703141,0.99192372,3317.4,3316.2,0.13381363]
[1768668703448,0.14349185,3317.6,3316.2,0.13381363]
[1768668703644,0.99199049,3317.5,3316.2,0.13381363]
[1768668703849,0.99199049,3317.4,3316.2,0.13381363]
[1768668704049,0.14349185,3317.6,3316.2,0.13381363]
[1768668704248,0.99197398,3317.5,3316.2,0.13381363]
[1768668704442,0.99197398,3317.4,3316.2,0.13381363]
[1768668704639,0.14349185,3317.6,3316.2,0.13381363]
[1768668704840,0.99171353,3317.5,3316.2,0.13381363]
[1768668705044,0.99171353,3317.4,3316.2,0.13381363]
[1768668705346,0.14349185,3317.6,3316.2,0.13381363]
[1768668705548,0.99179611,3317.5,3316.2,0.13381363]
[1768668705745,0.99179611,3317.4,3316.2,0.13381363]
[1768668705950,0.14349185,3317.6,3316.2,0.13381363]
[1768668706154,0.99179443,3317.5,3316.2,0.13381363]
[1768668706354,0.99179443,3317.4,3316.2,0.13381363]
[1768668706654,0.14349185,3317.6,3316.2,0.13381363]
[1768668706850,0.99190456,3317.5,3316.2,0.13381363]
[1768668707155,0.99190456,3317.4,3316.2,0.13381363]
[1768668707453,0.99205851,3317.3,3316.2,0.13381363]
[1768668707653,0.14349185,3317.6,3316.2,0.13381363]
[1768668707859,0.99204957,3317.5,3316.2,0.13381363]
[1768668708153,0.99204957,3317.4,3316.2,0.13381363]
[1768668708343,0.99204957,3317.3,3316.2,0.13381363]
[1768668708541,0.14349185,3317.6,3316.2,0.13381363]
[1768668708756,0.99223585,3317.5,3316.2,0.13381363]
[1768668708955,0.99223585,3317.4,3316.2,0.13381363]
[1768668709154,0.99223585,3317.3,3316.2,0.13381363]
[1768668709456,0.14349185,3317.6,3316.2,0.13381363]
[1768668709657,0.99250009,3317.5,3316.2,0.13381363]
[1768668709857,0.99250009,3317.4,3316.2,0.13381363]
[1768668710158,0.99250009,3317.3,3316.2,0.13381363]
[1768668710357,0.14349185,3317.6,3316.2,0.13381363]
[1768668710559,0.99248935,3317.5,3316.2,0.13381363]
[1768668710757,0.99248935,3317.4,3316.2,0.13381363]
[1768668711058,0.99248935,3317.3,3316.2,0.13381363]
[1768668711260,0.14349185,3317.6,3316.2,0.13381363]
[1768668711458,0.99247325,3317.5,3316.2,0.13381363]
[1768668711651,0.99247325,3317.4,3316.5,0.96984504]
[1768668711850,0.99247325,3317.3,3316.5,0.96984504]
[1768668712053,0.14349185,3317.6,3316.5,0.96984504]
[1768668712250,0.99249402,3317.5,3316.5,0.96984504]
[1768668712451,0.99249402,3317.4,3316.5,0.96984504]
[1768668712646,0.99249402,3317.3,3316.5,0.96984504]
[1768668712859,0.14349185,3317.6,3316.5,0.96984504]
[1768668713060,0.99249677,3317.5,3316.5,0.96984504]
[1768668713260,0.99249677,3317.4,3316.5,0.96984504]
[1768668713456,0.14349185,3317.6,3316.5,0.96984504]
[1768668713457,0.99249677,3317.3,3316.5,0.96984504]
[1768668713760,0.14349185,3317.6,3316.5,0.96984504]
[1768668713956,0.99124328,3317.5,3316.5,0.96984504]
[1768668714162,0.99124328,3317.4,3316.5,0.96984504]
[1768668714463,0.99124328,3317.3,3316.5,0.96984504]
[1768668714656,0.13184417,3318.0,3316.9,0.96984504]
[1768668714960,0.99130538,3317.9,3316.9,0.96984504]
[1768668715264,0.99130538,3317.8,3316.9,0.96984504]
[1768668715467,0.13184417,3318.4,3316.9,0.96984504]
[1768668715653,1.39961329,3318.3,3316.9,0.96984504]
[1768668715852,1.26776912,3318.2,3316.9,0.96984504]
[1768668716060,0.99125859,3318.1,3316.9,0.96984504]
[1768668716252,0.99125859,3318.0,3316.9,0.96984504]
[1768668716558,0.99125859,3317.9,3316.9,0.96984504]
[1768668716745,0.99125859,3317.8,3316.9,0.96984504]
[1768668716949,0.13184417,3318.3,3316.9,0.96984504]
[1768668717155,1.26572198,3318.2,3316.9,0.96984504]
[1768668717360,0.99111521,3318.1,3316.9,0.96984504]
[1768668717659,0.99111521,3318.0,3316.9,0.96984504]
[1768668717857,0.99111521,3317.9,3316.9,0.96984504]
[1768668718054,0.99111521,3317.8,3316.9,0.96984504]
[1768668718254,0.13184417,3318.3,3316.9,0.96984504]
[1768668718460,1.26553268,3318.2,3316.9,0.96984504]
[1768668718659,0.99098845,3318.1,3316.9,0.96984504]
[1768668718861,0.99098845,3318.0,3316.9,0.96984504]
[1768668719060,0.99098845,3317.9,3316.9,0.96984504]
[1768668719264,0.99098845,3317.8,3316.9,0.96984504]
[1768668719561,0.13184417,3318.3,3316.9,0.96984504]
[1768668719756,1.26531963,3318.2,3316.9,0.96984504]
[1768668719959,0.99080097,3318.1,3316.9,0.96984504]
[1768668720161,0.99080097,3318.0,3316.9,0.96984504]
[1768668720361,0.99080097,3317.9,3316.9,0.96984504]
[1768668720661,0.99080097,3317.8,3316.9,0.96984504]
[1768668720865,0.13184417,3318.3,3316.9,0.96984504]
[1768668721065,1.26529141,3318.2,3316.9,0.96984504]
[1768668721266,0.99077888,3318.1,3316.9,0.96984504]
[1768668721564,0.99077888,3318.0,3316.9,0.96984504]
[1768668721765,0.99077888,3317.9,3316.9,0.96984504]
[1768668721966,0.99077888,3317.8,3316.9,0.96984504]
[1768668722266,0.99077888,3317.7,3316.9,0.96984504]
[1768668722562,0.13184417,3318.3,3316.9,0.96984504]
[1768668722767,0.99061907,3318.2,3316.9,0.96984504]
[1768668722954,0.99061907,3318.1,3316.9,0.96984504]
[1768668723156,0.99061907,3318.0,3316.9,1.11128724]
[1768668723356,1.70784417,3318.7,3317.3,0.96984504]
[1768668723568,0.27450454,3318.6,3317.3,0.96984504]
[1768668723869,0.27450454,3318.5,3317.3,0.96984504]
[1768668724169,1.70784417,3318.7,3317.3,0.96984504]
[1768668724756,0.13184417,3318.7,3317.3,0.96984504]
[1768668727870,0.15071,3318.8,3317.4,0.1414422]
[1768668729462,0.15071,3318.8,3317.9,0.96955557]
[1768668730960,2.44719582,3318.9,3317.9,0.96955557]
[1768668735374,0.97005037,3318.8,3317.9,0.96955557]
[1768668735671,0.97005037,3318.7,3317.9,0.96955557]
[1768668735871,0.97005037,3318.6,3317.9,0.96955557]
[1768668736062,0.13184417,3318.7,3317.9,0.96955557]
[1768668736372,0.97001112,3318.6,3317.7,0.96955557]
[1768668736577,0.13184417,3318.7,3317.7,0.96955557]
[1768668736766,0.97005621,3318.6,3317.7,0.96955557]
[1768668736969,0.13184417,3318.7,3317.7,0.96955557]
[1768668737170,0.9702336,3318.6,3317.7,0.96955557]
[1768668737364,0.13184417,3318.7,3317.7,0.96955557]
[1768668737672,0.9703734,3318.6,3317.7,0.96955557]
[1768668737867,0.13184417,3318.7,3317.7,0.96955557]
[1768668738072,0.9704621,3318.6,3317.7,0.96955557]
[1768668738262,2.44719582,3318.9,3317.7,0.96955557]
[1768668738465,0.97055334,3318.8,3317.7,0.96955557]
[1768668738662,2.44719582,3318.9,3317.4,0.1414422]
[1768668738663,0.97055334,3318.7,3317.4,0.1414422]
[1768668738875,0.97055334,3318.6,3317.7,0.96955557]
[1768668739172,2.44719582,3318.9,3317.7,0.96955557]
[1768668739374,0.97055597,3318.8,3317.7,0.96955557]
[1768668739575,0.97055597,3318.7,3317.7,0.96955557]
[1768668739775,0.97055597,3318.6,3317.7,0.96955557]
[1768668739977,2.44719582,3318.9,3317.7,0.96955557]
[1768668740175,0.970693,3318.8,3317.7,0.96955557]
[1768668740474,0.970693,3318.7,3317.7,0.96955557]
[1768668740673,0.970693,3318.6,3317.7,0.96955557]
[1768668740875,0.970693,3318.5,3317.7,0.96955557]
[1768668741076,2.44719582,3318.9,3317.7,0.96955557]
[1768668741275,0.97085191,3318.8,3317.7,0.96955557]
[1768668741478,0.97085191,3318.7,3317.7,0.96955557]
[1768668741668,0.97085191,3318.6,3317.7,0.96955557]
[1768668741868,0.97085191,3318.5,3317.7,0.96955557]
[1768668742077,2.44719582,3318.9,3317.7,0.96955557]
[1768668742278,0.97104103,3318.8,3317.7,0.96955557]
[1768668742580,0.97104103,3318.7,3317.7,0.96955557]
[1768668742778,0.97104103,3318.6,3317.7,0.96955557]
[1768668743078,0.97104103,3318.5,3317.7,0.96955557]
[1768668743377,2.44719582,3318.9,3317.7,0.96955557]
[1768668743580,0.97169779,3318.8,3317.7,0.96955557]
[1768668743781,0.97169779,3318.7,3317.7,0.96955557]
[1768668743975,0.97169779,3318.6,3317.7,0.96955557]
[1768668744171,0.97169779,3318.5,3317.7,0.96955557]
[1768668744378,0.97201407,3318.4,3317.7,0.96955557]
[1768668744578,2.58267703,3318.9,3317.7,0.96955557]
[1768668744779,0.97201344,3318.8,3317.7,0.96955557]
[1768668745081,0.97201344,3318.7,3317.7,0.96955557]
[1768668745390,0.97201344,3318.6,3317.7,0.96955557]
[1768668745582,0.97201344,3318.5,3317.7,0.96955557]
[1768668745783,0.97201344,3318.4,3317.7,0.96955557]
[1768668745980,2.58267703,3318.9,3317.7,0.96955557]
[1768668746185,1.24137889,3318.8,3317.7,0.96955557]
[1768668746480,2.58267703,3318.9,3317.7,0.96955557]
[1768668746481,0.97207426,3318.7,3317.7,0.96955557]
[1768668746685,0.97207426,3318.6,3317.7,0.96955557]
[1768668746885,0.97207426,3318.5,3317.7,0.96955557]
[1768668747085,0.97207426,3318.4,3317.7,0.96955557]
[1768668747384,2.58267703,3318.9,3317.7,0.96955557]
[1768668747588,1.24370532,3318.8,3317.7,0.96955557]
[1768668747775,0.97224995,3318.7,3317.7,0.96955557]
[1768668747976,0.97224995,3318.6,3317.7,0.96955557]
[1768668748185,0.97224995,3318.5,3317.4,0.1414422]
[1768668748372,0.97224995,3318.4,3317.6,0.96955557]
[1768668748572,0.97224995,3318.3,3317.6,0.96955557]
[1768668748779,2.58267703,3318.9,3317.6,0.96955557]
[1768668749086,1.2438455,3318.8,3317.6,0.96955557]
[1768668749382,2.15358557,3319.2,3317.2,3.383]
[1768668749383,0.0030087,3319.2,3318.1,0.13468945]
[1768668749585,0.13548121,3320.0,3318.1,0.13468945]
[1768668749586,0.13548121,3320.0,3319.0,0.96955557]
[1768668749780,0.13548121,3320.0,3319.4,0.96955557]
[1768668750181,0.13548121,3320.0,3319.2,0.96955557]
[1768668750478,0.13548121,3320.0,3318.4,0.13468945]
[1768668750673,0.13838611,3320.0,3319.1,0.96955557]
[1768668751079,1.10794168,3320.0,3318.4,0.13736695]
[1768668751383,0.13838611,3320.0,3318.6,0.96955557]
[1768668753389,0.13838611,3320.0,3318.8,0.96955557]
[1768668753887,0.13838611,3320.0,3319.0,0.96955557]
[1768668754488,0.0029049,3320.0,3319.2,0.96955557]
[1768668755483,0.0029049,3320.0,3319.0,0.96955557]
[1768668756583,0.0029049,3320.0,3319.1,0.14344173]
[1768668756784,0.0029049,3320.0,3319.3,0.96955557]
[1768668757791,0.13989889,3320.0,3318.4,0.0026775]
[1768668757981,1.10654956,3319.9,3318.4,0.0026775]
[1768668758181,1.10654956,3319.9,3318.6,0.96955557]
[1768668758786,1.10654956,3319.9,3318.4,0.0026775]
[1768668758787,1.10654956,3319.9,3318.5,0.96955557]
[1768668760086,0.0029049,3320.0,3318.8,0.96955557]
[1768668760407,0.13699399,3320.3,3319.2,0.96955557]
[1768668761208,0.14021536,3320.3,3319.2,0.96955557]
[1768668761405,0.96395007,3320.2,3319.2,0.96955557]
[1768668761610,0.14021536,3320.3,3319.2,0.96955557]
[1768668761806,0.96395007,3320.2,3319.2,0.96955557]
[1768668762010,0.14021536,3320.3,3319.2,0.96955557]
[1768668762210,0.96395005,3320.2,3319.2,0.96955557]
[1768668762411,0.96395005,3320.1,3319.2,0.96955557]
[1768668762715,0.14021536,3320.3,3319.2,0.96955557]
[1768668762902,0.96388164,3320.2,3319.2,0.96955557]
[1768668763106,0.96388164,3320.1,3319.2,0.96955557]
[1768668763306,0.14021536,3320.3,3319.2,0.96955557]
[1768668763615,0.96390505,3320.2,3319.4,0.96955557]
[1768668763914,0.14021536,3320.3,3319.4,0.96955557]
[1768668763915,0.96390505,3320.1,3319.4,0.96955557]
[1768668764112,0.14021536,3320.3,3319.4,0.96955557]
[1768668764316,0.96388235,3320.2,3319.2,0.96955557]
[1768668764517,0.96388235,3320.1,3319.2,0.96955557]
[1768668764709,0.14021536,3320.3,3319.2,0.96955557]
[1768668764910,0.9502863,3320.2,3319.2,0.96955557]
[1768668765113,0.14021536,3320.3,3319.2,0.96955557]
[1768668765414,0.95028252,3320.2,3319.2,0.96955557]
[1768668765614,0.00322137,3320.3,3319.2,0.96955557]
[1768668765818,0.95028283,3320.2,3319.2,0.96955557]
[1768668766015,0.00322137,3320.3,3319.4,0.96955557]
[1768668766316,0.95027729,3320.2,3319.4,0.96955557]
[1768668766516,0.00322137,3320.3,3319.4,0.96955557]
[1768668766718,0.95030318,3320.2,3319.4,0.96955557]
[1768668766919,0.00322137,3320.3,3319.4,0.96955557]
[1768668767218,0.95030379,3320.2,3319.4,0.96955557]
[1768668767421,0.00322137,3320.3,3319.4,0.96955557]
[1768668767716,0.95036098,3320.2,3319.4,0.96955557]
[1768668767921,0.00322137,3320.3,3319.4,0.96955557]
[1768668768114,0.95036044,3320.2,3319.4,0.96955557]
[1768668768420,0.00322137,3320.3,3319.4,0.96955557]
[1768668768718,0.95044357,3320.2,3319.4,0.96955557]
[1768668768914,0.00322137,3320.3,3319.4,0.96955557]
[1768668769118,0.95044272,3320.2,3319.4,0.96955557]
[1768668769417,0.00322137,3320.3,3319.4,0.96955557]
[1768668769618,0.95003466,3320.2,3319.1,0.96955557]
[1768668769817,1.10654956,3320.2,3318.6,0.96955557]
[1768668770022,0.95002435,3320.1,3318.6,0.96955557]
[1768668770317,1.10654956,3320.2,3318.6,0.96955557]
[1768668770516,0.9501852,3320.1,3318.6,0.96955557]
[1768668770818,1.10654956,3320.2,3318.8,0.96955557]
[1768668771014,0.95002834,3320.1,3318.8,0.96955557]
[1768668771218,1.10654956,3320.2,3318.8,0.96955557]
[1768668771418,0.95021945,3320.1,3318.8,0.96955557]
[1768668771718,1.10654956,3320.2,3318.8,0.96955557]
[1768668771921,0.95022025,3320.1,3318.8,0.96955557]
[1768668772112,1.10654956,3320.2,3318.8,0.96955557]
[1768668772309,0.9504574,3320.1,3318.8,0.96955557]
[1768668772511,1.10654956,3320.2,3318.8,0.96955557]
[1768668772710,1.08010577,3320.1,3318.5,0.24344173]
[1768668772907,0.00322137,3320.3,3318.6,0.96955557]
[1768668772908,0.12964854,3319.9,3318.6,0.96955557]
[1768668773710,0.12964854,3319.9,3318.8,0.96955557]
[1768668777223,0.95253251,3319.8,3318.8,0.96955557]
[1768668777423,0.12964854,3319.9,3318.8,0.96955557]
[1768668777629,0.95258903,3319.8,3318.8,0.96955557]
[1768668777929,0.12964854,3319.9,3318.8,0.96955557]
[1768668778223,0.9525909,3319.8,3318.8,0.96955557]
[1768668778429,0.9525909,3319.7,3318.8,0.96955557]
[1768668778632,0.12964854,3319.9,3318.8,0.96955557]
[1768668778929,0.9534382,3319.8,3318.8,0.96955557]
[1768668779140,0.9534382,3319.7,3318.8,0.96955557]
[1768668779327,0.9534382,3319.6,3318.8,0.96955557]
[1768668779628,0.9551151,3319.5,3318.8,0.96955557]
[1768668779929,0.12964854,3319.9,3318.8,0.96955557]
[1768668780132,0.95512696,3319.8,3318.8,0.96955557]
[1768668780330,0.95512696,3319.7,3318.8,0.96955557]
[1768668780634,0.95512696,3319.6,3318.8,0.96955557]
[1768668780820,0.95512696,3319.5,3318.8,0.96955557]
[1768668781020,0.12964854,3319.9,3318.8,0.96955557]
[1768668781222,0.95517752,3319.8,3318.8,0.96955557]
[1768668781420,0.95517752,3319.7,3318.8,0.96955557]
[1768668781625,0.95517752,3319.6,3318.8,0.96955557]
[1768668781816,0.96955557,3320.2,3318.8,0.96955557]
[1768668782124,1.22471724,3320.1,3318.8,0.96955557]
[1768668782324,0.95517395,3320.0,3318.8,0.96955557]
[1768668782528,0.95517395,3319.9,3318.8,0.96955557]
[1768668782718,0.95517395,3319.8,3318.8,0.96955557]
[1768668782919,0.95517395,3319.7,3318.8,0.96955557]
[1768668783119,1.09920411,3320.2,3318.8,0.96955557]
[1768668783421,1.22470105,3320.1,3318.8,0.96955557]
[1768668783620,0.95516128,3320.0,3318.8,0.96955557]
[1768668783823,0.95516128,3319.9,3318.8,0.96955557]
[1768668784020,0.95516128,3319.8,3318.8,0.96955557]
[1768668784220,1.09920411,3320.2,3318.8,0.96955557]
[1768668784425,1.22470903,3320.1,3318.8,0.96955557]
[1768668784629,0.95517095,3320.0,3318.8,0.96955557]
[1768668784922,1.09920411,3320.2,3318.8,0.96955557]
[1768668784923,0.95517095,3319.9,3318.8,0.96955557]
[1768668785126,0.95517095,3319.8,3318.8,0.96955557]
[1768668785328,1.09920411,3320.2,3318.8,0.96955557]
[1768668785525,1.22445246,3320.1,3318.8,0.96955557]
[1768668785727,0.95496751,3320.0,3318.8,0.96955557]
[1768668785925,0.95496751,3319.9,3318.8,0.96955557]
[1768668786133,0.95496751,3319.8,3318.8,0.96955557]
[1768668786336,1.09920411,3320.2,3318.8,0.96955557]
[1768668786639,1.22416299,3320.1,3318.8,0.96955557]
[1768668786825,0.95474058,3320.0,3318.8,0.96955557]
[1768668787026,0.95474058,3319.9,3318.8,0.96955557]
[1768668787226,0.95474058,3319.8,3318.8,0.96955557]
[1768668787425,1.09920411,3320.2,3318.8,0.96955557]
[1768668787618,1.22428173,3320.1,3318.8,1.10094688]
[1768668787833,0.95483232,3320.0,3318.8,1.10094688]
[1768668788028,0.95483232,3319.9,3318.9,0.13139131]
[1768668788234,0.95483232,3319.8,3318.9,0.13139131]
[1768668788434,0.00322137,3320.3,3318.9,0.13139131]
[1768668788737,1.21669434,3320.2,3319.3,0.96955557]
[1768668789032,0.95479663,3320.1,3319.3,0.96955557]
[1768668789230,0.95479663,3320.0,3319.3,0.96955557]
[1768668789435,0.95479663,3319.9,3318.9,0.13139131]
[1768668789632,0.95479663,3319.8,3318.9,0.13139131]
[1768668789833,0.00322137,3320.3,3318.9,0.13139131]
[1768668790033,1.21662677,3320.2,3318.9,0.13139131]
[1768668790233,0.95475158,3320.1,3318.9,0.13139131]
[1768668790537,0.95475158,3320.0,3318.9,0.13139131]
[1768668790837,0.95475158,3319.9,3318.9,0.13139131]
[1768668791037,0.95475158,3319.8,3318.9,0.13139131]
[1768668791238,0.00322137,3320.3,3318.9,0.13139131]
[1768668791436,1.21675534,3320.2,3318.9,0.13139131]
[1768668791635,0.95484638,3320.1,3318.9,0.13139131]
[1768668791832,0.95484638,3320.0,3318.9,0.13139131]
[1768668792033,0.95484638,3319.9,3318.9,0.13139131]
[1768668792238,0.95484638,3319.8,3318.9,0.13139131]
[1768668792536,0.00322137,3320.3,3318.9,0.13139131]
[1768668792730,1.21669286,3320.2,3318.9,0.13139131]
[1768668792926,0.95478754,3320.1,3318.9,0.13139131]
[1768668793129,0.95478754,3320.0,3318.9,0.13139131]
[1768668793331,0.95478754,3319.9,3318.9,0.13139131]
[1768668793532,0.95478754,3319.8,3318.9,0.13139131]
[1768668793733,0.00322137,3320.3,3318.9,0.13139131]
[1768668794032,1.21669465,3320.2,3318.9,0.13139131]
[1768668794231,0.95478233,3320.1,3318.9,0.13139131]
[1768668794432,0.95478233,3320.0,3318.9,0.13139131]
[1768668794636,0.95478233,3319.9,3318.9,0.13139131]
[1768668794841,0.95478233,3319.8,3318.9,0.13139131]
[1768668795033,0.95478233,3319.7,3318.9,0.13139131]
[1768668795231,0.13286991,3320.3,3318.9,0.13139131]
[1768668795431,1.2320485,3320.2,3318.9,0.13139131]
[1768668795632,1.23204685,3320.1,3318.9,0.13139131]
[1768668795930,0.97013048,3320.0,3318.9,0.13139131]
[1768668796129,0.97013048,3319.9,3318.9,0.13139131]
[1768668796330,0.97013048,3319.8,3318.9,0.13139131]
[1768668796537,0.97013048,3319.7,3318.9,0.13139131]
[1768668796736,0.13286991,3320.3,3318.9,0.13139131]
[1768668796937,1.23206035,3320.2,3318.9,0.13139131]
[1768668797138,0.97013991,3320.1,3318.9,0.13139131]
[1768668797342,0.97013991,3320.0,3318.9,0.13139131]
[1768668797633,0.97013991,3319.9,3318.9,0.13139131]
[1768668797841,0.97013991,3319.8,3318.9,0.13139131]
[1768668798040,0.97013991,3319.7,3318.9,0.13139131]
[1768668798244,0.13286991,3320.3,3318.9,0.13139131]
[1768668798539,1.23211678,3320.2,3318.9,0.13139131]
[1768668798740,1.23211678,3320.1,3318.9,0.13139131]
[1768668798941,0.97018391,3320.0,3318.7,0.96880077]
[1768668799141,0.97018391,3319.9,3318.7,0.96880077]
[1768668799342,0.13286991,3320.3,3318.7,0.96880077]
[1768668799343,0.97018391,3319.8,3318.7,0.96880077]
[1768668799543,0.97018391,3319.7,3318.7,0.96880077]
[1768668799734,0.13286991,3320.3,3318.7,0.96880077]
[1768668799933,1.23214603,3320.2,3318.7,0.96880077]
[1768668800136,1.23214603,3320.1,3318.7,0.96880077]
[1768668800336,0.9702071,3320.0,3318.7,0.96880077]
[1768668800538,0.9702071,3319.9,3318.7,0.96880077]
[1768668800733,0.9702071,3319.8,3318.7,0.96880077]
[1768668800931,0.9702071,3319.7,3318.7,0.96880077]
[1768668801138,0.13286991,3320.3,3318.7,0.96880077]
[1768668801334,1.23214104,3320.2,3318.7,1.10019208]
[1768668801535,0.97020315,3320.1,3318.7,1.10019208]
[1768668801745,0.97020315,3320.0,3318.7,1.10019208]
[1768668801944,0.97020315,3319.9,3318.7,1.10019208]
[1768668802243,0.97020315,3319.8,3318.7,1.10019208]
[1768668802442,0.13286991,3320.3,3318.7,1.10019208]
[1768668802642,1.23213526,3320.2,3318.7,1.10019208]
[1768668802845,1.23213526,3320.1,3318.7,1.10019208]
[1768668803037,0.97020223,3320.0,3318.7,1.10019208]